Cogmind - Beta 17 @@@ ROGUE MODE // 2026.07.26 @ 05:16:42 Player: cxt100s Result: Destroyed by S-43 Plague with Heavy Machine Gun Performance ------------- Evolutions (8) 4000 Regions Visited (18) 3600 Robots Destroyed (152) 760 Value Destroyed (3319) 3319 Prototype IDs (35) 700 Alien Tech Used (0) 0 Bonus (3042) 3042 TOTAL SCORE: 15421 Bonus ------- High Alert Combat Kills 42 Hunted by Unchained 500 Entered Garrisons 200 Used RIF Installer 500 Registered with UFD 300 Met Optimus in HQ 500 Met Optimus at Protoforge 1000 Cogmind --------- Core Integrity 0/1450 Matter 295/300 Energy 100/100 System Corruption 1% Temperature Cool (0) Movement Flying (45) Location -2/Protoforge Parts ------- > --- POWER (2) -------- Backup Power VII > --- PROPULSION (6) --- Impulse Thruster Array > --- UTILITY (13) ----- Advanced Weight Redist. System Machine Analyzer Experimental Optical Array Advanced Terrain Scan Processor Makeshift Core Shielding Makeshift Propulsion Shielding Makeshift Propulsion Shielding Centrium Light Armor Plating Improved Hacking Suite Advanced Hacking Suite Improved System Shield Improved System Shield > --- WEAPON (2) ------- (None) > --- INVENTORY (5) ---- Light Humpback Light Humpback Peak State ------------ > --- POWER ------------ Light Antimatter Reactor Light Quantum Reactor > --- PROPULSION ------- Impulse Thruster Array Impulse Thruster Array Impulse Thruster Array > --- UTILITY ---------- Medium Storage Unit Energy Well Advanced Weight Redist. System Machine Analyzer Experimental Optical Array Advanced Terrain Scan Processor Makeshift Propulsion Shielding Makeshift Propulsion Shielding Makeshift Medium Armor Plating Improved Hacking Suite Advanced Hacking Suite Improved System Shield Improved System Shield > --- WEAPON ----------- Enhanced Force Lance > --- INVENTORY -------- UFD Drillbomb [Rating: 142] Favorites ----------- Power Heavy Ion Engine Engine Heavy Ion Engine Power Core Micro Fission Core Reactor Light Antimatter Reactor Propulsion Light Treads Treads Light Treads Leg Carbon-fiber Leg Flight Unit Impulse Thruster Array Utility Improved System Shield Device Seismic Detector Storage Huge Storage Unit Processor Machine Analyzer Hackware Improved System Shield Protection Hardened Light Armor Plating Weapon Improved Light Cannon Energy Gun Small Laser Ballistic Gun Assault Rifle Ballistic Cannon Improved Light Cannon Launcher Mini Grenade Launcher Impact Weapon Heavy Hammer Slashing Weapon Power Sword Piercing Weapon Enhanced Force Lance Special Melee Weapon Improved Datajack Build | -11 -10 -9 -9 -9 -9 -6 -6 -6 -5 -5 -5 -4 -4 -4 -3 -2 -2 -2 ------- Run | Yrd Mat Mat Sto Rec Scr Fac Gar Fac Fac Was Fac Fac Was Fac Res Res Qua Frg Slots Evolved 16 | . . 2 . . . 6 . . 2 . . 2 . . 2 2 . . Power 1 | . . . . . . 1 . . . . . . . . . . . . Propulsion 4 | . . 1 . . . 2 . . 1 . . . . . . . . . Utility 11 | . . 1 . . . 3 . . 1 . . 2 . . 2 2 . . Weapon . | . . . . . . . . . . . . . . . . . . . Parts Attached 196 | 3 13 28 14 2 1 6 9 18 17 1 11 4 . 1 11 5 3 49 Power 33 | . 3 4 . . 1 . 2 4 3 . 3 . . . 1 . 2 10 Engine 13 | . 3 4 . . 1 . 2 1 . . 1 . . . . . 1 . Core 11 | . . . . . . . . 3 3 . 2 . . . 1 . . 2 Reactor 9 | . . . . . . . . . . . . . . . . . 1 8 Propulsion 63 | 2 1 12 10 2 . 1 5 6 4 1 2 . . 1 5 1 . 10 Treads 29 | 2 1 12 9 2 . 1 2 . . . . . . . . . . . Leg 3 | . . . . . . . 3 . . . . . . . . . . . Wheel . | . . . . . . . . . . . . . . . . . . . Hover . | . . . . . . . . . . . . . . . . . . . Flight 31 | . . . 1 . . . . 6 4 1 2 . . 1 5 1 . 10 Utility 71 | 1 5 6 1 . . 4 1 5 7 . 6 3 . . 4 3 1 24 Device 18 | 1 1 . . . . 1 . 1 4 . 1 . . . 1 1 1 6 Storage 10 | . 2 1 . . . . . 1 1 . . . . . 1 . . 4 Processor 12 | . . 1 . . . 1 . 2 . . 2 1 . . 1 1 . 3 Hackware 12 | . . . . . . 2 . 1 2 . 3 2 . . 1 1 . . Protection 19 | . 2 4 1 . . . 1 . . . . . . . . . . 11 Artifact . | . . . . . . . . . . . . . . . . . . . Weapon 29 | . 4 6 3 . . 1 1 3 3 . . 1 . . 1 1 . 5 Energy Gun 2 | . 2 . . . . . . . . . . . . . . . . . Energy Cannon . | . . . . . . . . . . . . . . . . . . . Ballistic Gun 6 | . . 3 1 . . . . . . . . . . . . . . 2 Ballistic Cannon 6 | . 1 3 1 . . 1 . . . . . . . . . . . . Launcher 1 | . . . . . . . 1 . . . . . . . . . . . Special Weapon . | . . . . . . . . . . . . . . . . . . . Impact Weapon 4 | . 1 . 1 . . . . 2 . . . . . . . . . . Slashing Weapon 2 | . . . . . . . . . . . . . . . . . . 2 Piercing Weapon 7 | . . . . . . . . . 3 . . 1 . . 1 1 . 1 Special Melee Weapon 1 | . . . . . . . . 1 . . . . . . . . . . Unidentified Prototypes 19 | . . 1 2 . . . . 1 . . 1 . . . 2 . . 12 Corrupted Parts 1 | . . . . . . . . . . . . . . . . . . 1 System Corruption 1 | . . . . . . . . . . . . . . . . . . 1 Parts Lost 61 | . 2 . 1 . . . 6 4 8 . 1 1 . 3 6 . 9 20 Power 13 | . . . . . . . . 2 1 . . . . . 2 . 3 5 Propulsion 20 | . 1 . . . . . 4 1 3 . 1 . . 2 2 . 1 5 Utility 23 | . 1 . 1 . . . 1 1 4 . . 1 . . 1 . 4 9 Weapon 5 | . . . . . . . 1 . . . . . . 1 1 . 1 1 Highest Loss Streak 9 | . 1 . 1 . . . 3 3 3 . 1 1 . 3 4 . 9 4 To Critical Strikes 2 | . . . . . . . . . 1 . . . . . . . 1 . Average Backups 15 | 4 12 23 24 25 25 24 24 10 9 9 9 9 10 10 9 8 8 3 Power 1 | 1 . . 1 1 1 2 3 1 1 2 1 2 2 2 . . . . Propulsion 6 | 1 5 10 12 12 12 10 8 2 1 1 1 1 2 2 3 3 2 1 Utility 3 | . 3 3 4 4 4 3 4 5 4 4 5 4 5 5 4 2 4 . Weapon 4 | 1 3 8 7 8 7 8 8 1 . 1 . . . . . . . . Tool/Special . | . . . . . . . . . . . . . . . . . . . Unused Backups 76 | 12 13 14 7 . 2 . 1 7 1 . 2 . . . 2 . . 15 Power 10 | 1 3 1 . . 2 . 1 . . . . . . . . . . 2 Propulsion 27 | 6 1 9 7 . . . . . . . . . . . . . . 4 Utility 21 | 3 5 1 . . . . . 2 1 . 2 . . . 2 . . 5 Weapon 17 | 2 4 3 . . . . . 5 . . . . . . . . . 3 Tool/Special 1 | . . . . . . . . . . . . . . . . . . 1 Average Slot Usage (%) 87 | . 98 99 99 100 100 89 95 93 87 82 94 97 100 98 83 90 83 56 Engine 6 | . 14 11 11 11 11 6 10 . . . 2 . . . . 4 1 . Core 1 | . . . . . . . . 11 5 5 5 10 10 9 5 3 2 . Treads 19 | . 28 32 33 33 33 32 26 . . . . . . . . . . . Flight 7 | . . . . . . . . 31 30 29 31 29 31 30 22 19 20 12 Device 8 | . 10 10 11 11 11 8 6 5 9 17 11 6 5 5 8 9 10 3 Storage 7 | . 14 11 11 11 11 6 6 6 5 5 5 5 5 5 4 4 4 2 Processor 4 | . . . . . . 5 6 9 5 5 4 7 10 10 9 12 11 10 Hackware 7 | . . . . . . 7 13 15 15 5 16 25 26 26 25 28 23 17 Protection 6 | . 2 10 11 11 11 6 5 . . . . . . . . . . 4 Ballistic Gun 1 | . 13 1 . . . . . . . . . . . . . . . . Ballistic Cannon 11 | . . 20 21 22 22 12 10 . . . . . . . . . . . Piercing Weapon 1 | . . . . . . . . . 8 11 11 10 10 9 4 6 5 1 Peak Build Rating 142 | 7 8 19 20 20 20 39 51 54 64 54 81 94 94 94 109 121 119 142 Average Rating 47 | 6 7 16 18 20 19 35 44 48 55 54 71 91 94 92 98 115 105 101 On Entrance 51 | 6 7 8 18 20 20 20 37 51 44 49 54 81 94 94 72 107 119 85 Avg Prop Armor Cover (%) 3 | . . . . . . . 6 7 2 . 2 2 2 3 6 6 . 4 Naked Turns . | . . . . . . . . . . . . . . . . . . . Heaviest Build 121 | 14 31 108 104 102 102 113 121 120 28 24 28 28 27 27 29 30 34 65 Greatest Support 109 | 40 40 60 60 60 60 103 109 63 31 27 29 29 29 35 32 53 43 57 Greatest Overweight (x) 2 | . . 2 1 1 1 1 1 1 1 . . . . . . . . 1 Average Overweight (x) . | . . . 1 1 1 . . . . . . . . . . . . . Largest Inventory Capacity 25 | 8 15 25 25 25 25 25 25 25 10 10 10 10 10 10 10 10 10 25 Average Capacity 17 | 8 14 23 25 25 25 25 25 10 10 10 10 10 10 10 10 10 10 7 Most Carried 25 | 7 15 25 25 25 25 25 25 25 10 9 10 10 10 10 10 10 10 25 Average Carried 16 | 4 12 23 24 25 24 24 24 10 9 9 9 9 10 9 9 9 9 5 Final Capacity 25 | 8 15 25 25 25 25 25 25 10 10 10 10 10 10 10 10 10 10 5 Final Carried 25 | 5 15 25 25 25 25 25 25 10 10 9 10 10 10 10 10 10 10 4 Scrap Suit Usage (%) 1 | . . . . . . . . . . . . . . . . . . 1 Class Distribution -------------------- 48% | Scavenger-Mutant 22% | Hacker-Mutant 8% | Hacker-Sprinter 6% | Mutant 5% | Commander-Mutant 5% | Wizard-Sprinter Dominant Class ---------------- Mutant | -10/Materials Scavenger-Mutant | -9/Materials Scavenger-Mutant | -9/Storage Scavenger-Mutant | -9/Recycling Scavenger-Mutant | -9/Scraptown Scavenger-Mutant | -6/Factory Scavenger-Mutant | -6/Garrison Hacker-Sprinter | -6/Factory Hacker-Sprinter | -5/Factory Infiltrator-Sprinter | -5/Waste Hacker-Sprinter | -5/Factory Wizard-Sprinter | -4/Factory Wizard-Sprinter | -4/Waste Wizard-Sprinter | -4/Factory Wizard-Sprinter | -3/Research Wizard-Sprinter | -2/Research Wizard-Scout | -2/Quarantine Hacker-Mutant | -2/Protoforge Resources | -11 -10 -9 -9 -9 -9 -6 -6 -6 -5 -5 -5 -4 -4 -4 -3 -2 -2 -2 ----------- Run | Yrd Mat Mat Sto Rec Scr Fac Gar Fac Fac Was Fac Fac Was Fac Res Res Qua Frg Matter Collected 5749 | 308 671 1230 795 100 20 63 728 135 269 . 274 75 . . 30 182 48 821 Remotely . | . . . . . . . . . . . . . . . . . . . Salvage Created 4583 | 292 918 1030 671 243 . 65 407 135 196 . 279 21 . . 56 60 . 210 Parts 294 | 29 57 76 49 8 . . 26 . 19 . 9 2 . . 6 6 . 7 Haulers Intercepted 17 | . 2 6 6 . . . . . . . 1 . . . . . . 2 Recyclers Shooed 9 | 1 3 . 1 3 . . . 1 . . . . . . . . . . Parts Field Recycled . | . . . . . . . . . . . . . . . . . . . Retrieved Matter . | . . . . . . . . . . . . . . . . . . . Parts Self-Destructed . | . . . . . . . . . . . . . . . . . . . Prevented . | . . . . . . . . . . . . . . . . . . . Parts Restored . | . . . . . . . . . . . . . . . . . . . Kills | -11 -10 -9 -9 -9 -9 -6 -6 -6 -5 -5 -5 -4 -4 -4 -3 -2 -2 -2 ------- Run | Yrd Mat Mat Sto Rec Scr Fac Gar Fac Fac Was Fac Fac Was Fac Res Res Qua Frg Combat Hostiles Destroyed 85 | . 19 24 17 3 . 1 20 . . . . . . . . . . 1 Melee 1 | . . . . . . . . . . . . . . . . . . 1 Guns 19 | . 19 . . . . . . . . . . . . . . . . . Cannons 55 | . . 24 17 3 . 1 10 . . . . . . . . . . . AOE 10 | . . . . . . . 10 . . . . . . . . . . . Classes Destroyed 14 | 2 5 3 1 . . . 2 . . . . . . . . . . 1 Worker 6 | . . . 1 . . 1 . . 3 . 1 . . . . . . . Builder 5 | . . 1 . 1 . . . . 3 . . . . . . . . . Tunneler 15 | 9 . . . . . . . . 1 . . 1 . . 3 1 . . Hauler 17 | . 2 6 6 . . . . . . . 1 . . . . . . 2 Recycler 10 | 1 4 1 . 2 . . . 1 . . 1 . . . . . . . Mechanic 2 | . . 1 . . . . . . . . . . . . . 1 . . Operator 5 | . 2 2 . . . . . . 1 . . . . . . . . . Drone 1 | . . . . . . . . . . . . . . . . . . 1 Watcher 9 | . 3 3 1 . . . . . 1 . 1 . . . . . . . Swarmer 28 | . 12 5 3 . . . 8 . . . . . . . . . . . Cutter 3 | . . . . . . . 3 . . . . . . . . . . . Grunt 31 | . 7 12 5 . . . 7 . . . . . . . . . . . Duelist 1 | . . . . . . . 1 . . . . . . . . . . . Sentry 21 | . . 7 9 3 . 1 1 . . . . . . . . . . . Best Kill Streak 7 | 4 6 3 3 4 . 1 7 1 2 . 2 1 . . 2 1 . 1 Combat Bots Only 7 | . 3 3 3 1 . 1 7 . . . . . . . . . . 1 Max Kills in Single Turn 2 | 2 1 2 1 1 . 1 2 1 1 . 1 1 . . 1 1 . 1 Gunslinging . | . . . . . . . . . . . . . . . . . . . Exploded 2 | . . . . . . . 2 . . . . . . . . . . . Melee 1 | . . . . . . . . . . . . . . . . . . 1 Uniques/NPCs Destroyed . | . . . . . . . . . . . . . . . . . . . Combat | -11 -10 -9 -9 -9 -9 -6 -6 -6 -5 -5 -5 -4 -4 -4 -3 -2 -2 -2 -------- Run | Yrd Mat Mat Sto Rec Scr Fac Gar Fac Fac Was Fac Fac Was Fac Res Res Qua Frg Hostile Shots Fired 1022 | . 102 80 75 10 . . 144 57 104 . 13 38 . 23 67 12 76 221 Missed 413 | . 19 22 18 4 . . 44 28 58 . 7 21 . 11 38 8 35 100 Hits 609 | . 83 58 57 6 . . 100 29 46 . 6 17 . 12 29 4 41 121 Melee 10 | . . . . . . . 5 1 . . . . . 3 . . . 1 Projectile 599 | . 83 58 57 6 . . 95 28 46 . 6 17 . 9 29 4 41 120 AOE 1 | . . . . . . . 1 . . . . . . . . . . . Critical Strikes 21 | . . . 2 . . . 3 2 2 . . 1 . 2 3 . 3 3 Actively Blocked 1 | . . . . . . . . . . . . . . . . . . 1 Damage Taken 11458 | . 778 718 752 89 . . 1620 544 832 . 117 211 . 288 691 108 826 3884 Core 2865 | . 89 102 41 . . . 152 191 312 . 57 41 . 151 269 108 220 1132 Absorbed by Shields 278 | . . . . . . . 278 . . . . . . . . . . . Redirected to Shielding 142 | . . . . . . . . . . . . . . . . . . 142 Regen/Repaired (Parts) 478 | . . 183 33 . . . . . 75 . 35 43 . 63 . 46 . . Core Remaining (%) 73 | 100 64 . . . 64 . . 59 . . 63 . . 83 79 . . . Volleys Fired 346 | 26 98 82 77 12 . 5 46 . . . . . . . . . . . Largest 2 | 2 2 2 2 2 . 2 2 . . . . . . . . . . . Hottest 77 | 60 60 66 66 66 . 77 77 . . . . . . . . . . . Shots Fired 651 | 52 192 162 138 20 . 10 77 . . . . . . . . . . . Gun 262 | 52 192 18 . . . . . . . . . . . . . . . . Cannon 378 | . . 144 138 20 . 10 66 . . . . . . . . . . . Launcher 11 | . . . . . . . 11 . . . . . . . . . . . Special . | . . . . . . . . . . . . . . . . . . . Kinetic 518 | 26 96 162 138 20 . 10 66 . . . . . . . . . . . Thermal 122 | 26 96 . . . . . . . . . . . . . . . . . Explosive 11 | . . . . . . . 11 . . . . . . . . . . . Electromagnetic . | . . . . . . . . . . . . . . . . . . . Robot Hit Streak 17 | 5 10 17 14 11 . 6 8 . . . . . . . . . . . Robot Miss Streak 5 | 3 4 3 4 2 . 2 5 . . . . . . . . . . . Penetration Max . | . . . . . . . . . . . . . . . . . . . Secondary Targets 1 | . 1 . . . . . . . . . . . . . . . . . Max Gunslinging Chain 1 | . 1 . . . . . . . . . . . . . . . . . Shots Hit Robots 436 | 28 112 111 84 13 . 8 41 2 12 . 9 1 . . 4 3 1 7 Core Hits 184 | 11 46 40 28 6 . 2 32 . 6 . 4 1 . . 2 2 . 4 Critical Kills 1 | 1 . . . . . . . . . . . . . . . . . . Critical Parts Destroyed . | . . . . . . . . . . . . . . . . . . . Critical Strikes 19 | 1 . 9 4 1 . . 2 . . . . . . . 1 . . 1 Destroy 1 | 1 . . . . . . . . . . . . . . . . . . Blast 16 | . . 9 4 1 . . 2 . . . . . . . . . . . Impale 2 | . . . . . . . . . . . . . . . 1 . . 1 Melee Attacks 215 | . 6 . 7 . . 2 1 21 58 . 54 11 . 14 15 9 7 10 Impact 52 | . 6 . 7 . . 2 1 21 15 . . . . . . . . . Slashing 1 | . . . . . . . . . . . . . . . . . . 1 Piercing 161 | . . . . . . . . . 42 . 54 11 . 14 15 9 7 9 Sneak Attacks 27 | . . . . . . 1 . 2 10 . 3 1 . . 4 2 1 3 Combat Hostiles . | . . . . . . . . . . . . . . . . . . . Follow-up Attacks 2 | . . . . . . . . . 1 . . . . . . 1 . . Damage Inflicted 11144 | 339 1372 2271 1841 295 . 227 1958 234 829 . 556 72 . 4 359 213 80 494 Guns 1894 | 339 1345 210 . . . . . . . . . . . . . . . . Cannons 5153 | . . 1977 1745 291 . 183 957 . . . . . . . . . . . Explosions 1029 | . . . 28 . . . 1001 . . . . . . . . . . . Melee 2881 | . . . . . . 44 . 234 829 . 556 72 . . 359 213 80 494 Ramming 187 | . 27 84 68 4 . . . . . . . . . 4 . . . . Kinetic 6231 | 194 674 2187 1745 291 . 183 957 . . . . . . . . . . . Thermal 816 | 145 671 . . . . . . . . . . . . . . . . . Explosive 1029 | . . . 28 . . . 1001 . . . . . . . . . . . Electromagnetic . | . . . . . . . . . . . . . . . . . . . Impact 424 | . . . . . . 44 . 234 146 . . . . . . . . . Slashing 82 | . . . . . . . . . . . . . . . . . . 82 Piercing 2375 | . . . . . . . . . 683 . 556 72 . . 359 213 80 412 Highest Corruption 9 | . . . . . . . . 1 . . . . 9 9 4 . . 1 Average Corruption 1 | . . . . . . . . 1 . . . . 9 9 3 . . 1 Corruption Purged . | . . . . . . . . . . . . . . . . . . . Corruption Blocked . | . . . . . . . . . . . . . . . . . . . Effects 54 | . . . . . . . . 1 . . . . 1 22 2 . . 28 Message Errors 15 | . . . . . . . . 1 . . . . 1 6 1 . . 6 Matter Fused 16 | . . . . . . . . . . . . . . 5 1 . . 10 Heat Flow Errors 7 | . . . . . . . . . . . . . . 3 . . . 4 Energy Discharges 5 | . . . . . . . . . . . . . . 2 . . . 3 Parts Rejected 1 | . . . . . . . . . . . . . . . . . . 1 Data Loss (minor) 6 | . . . . . . . . . . . . . . 3 . . . 3 Data Loss (major) 4 | . . . . . . . . . . . . . . 3 . . . 1 Overload Shots . | . . . . . . . . . . . . . . . . . . . Overflow Damage 728 | . . 39 32 . . 4 107 49 227 . 33 . . . 171 24 40 2 Projectiles 104 | . . 34 32 . . . 38 . . . . . . . . . . . Explosions 69 | . . . . . . . 69 . . . . . . . . . . . Melee 555 | . . 5 . . . 4 . 49 227 . 33 . . . 171 24 40 2 Knockbacks 48 | . . 24 6 2 . 3 11 1 1 . . . . . . . . . Impact 4 | . . 1 . . . 1 . 1 1 . . . . . . . . . Kinetic 41 | . . 21 6 1 . 2 11 . . . . . . . . . . . Secondary 3 | . . 2 . 1 . . . . . . . . . . . . . . Self-Inflicted Damage 234 | . . . 44 . . . 188 . . . . . . 2 . . . . Shots 6 | . . . 1 . . . 5 . . . . . . . . . . . Rammed 25 | . 5 10 8 1 . . . . . . . . . 1 . . . . Targets Rammed 27 | . 6 11 8 1 . . . . . . . . . 1 . . . . Kicked . | . . . . . . . . . . . . . . . . . . . Crushed 2 | . 1 1 . . . . . . . . . . . . . . . . Highest Temperature 366 | . 153 117 91 54 . . 366 42 204 1 5 . . 241 22 48 46 229 Average Temperature 39 | . 41 26 24 25 . . 141 4 79 1 3 . . 58 13 48 46 116 Received Heat Transfer 1875 | . 222 297 237 18 . . 386 108 147 . 45 9 . 9 79 18 90 210 Effects 1 | . . . . . . . . . 1 . . . . . . . . . Interference 1 | . . . . . . . . . 1 . . . . . . . . . Siege Activations . | . . . . . . . . . . . . . . . . . . . Martial Activations . | . . . . . . . . . . . . . . . . . . . Shielding Activations . | . . . . . . . . . . . . . . . . . . . Robots Disrupted . | . . . . . . . . . . . . . . . . . . . Combat Hostiles . | . . . . . . . . . . . . . . . . . . . Robots Corrupted 3 | . . . . . . 1 . 1 1 . . . . . . . . . Combat Hostiles . | . . . . . . . . . . . . . . . . . . . Parts Fried 5 | . . . . . . 2 . 1 2 . . . . . . . . . Impact Corruptions 7 | . . 1 . . . 1 . 2 3 . . . . . . . . . Robots Melted . | . . . . . . . . . . . . . . . . . . . Combat Hostiles . | . . . . . . . . . . . . . . . . . . . Parts Melted 3 | . 2 . . . . . 1 . . . . . . . . . . . Heat Transferred 1850 | 325 1525 . . . . . . . . . . . . . . . . . Parts Sabotaged . | . . . . . . . . . . . . . . . . . . . Parts Stolen . | . . . . . . . . . . . . . . . . . . . Parts Stripped . | . . . . . . . . . . . . . . . . . . . Power Chain Reactions . | . . . . . . . . . . . . . . . . . . . Alert | -11 -10 -9 -9 -9 -9 -6 -6 -6 -5 -5 -5 -4 -4 -4 -3 -2 -2 -2 ------- Run | Yrd Mat Mat Sto Rec Scr Fac Gar Fac Fac Was Fac Fac Was Fac Res Res Qua Frg Maximum Alert Level 2 | . 1 1 1 . . . 2 1 . . . . . . . . 1 2 Low Security (%) 90 | 100 72 98 93 100 . 100 30 47 100 100 100 100 100 100 100 100 81 90 Level 1 7 | . 27 1 6 . . . 16 52 . . . . . . . . 18 6 Level 2 2 | . . . . . . . 52 . . . . . . . . . . 2 Level 3 . | . . . . . . . . . . . . . . . . . . . Level 4 . | . . . . . . . . . . . . . . . . . . . Level 5 . | . . . . . . . . . . . . . . . . . . . High Security . | . . . . . . . . . . . . . . . . . . . Max Security . | . . . . . . . . . . . . . . . . . . . Peak Influence 567 | 15 237 205 220 82 . 30 450 279 153 . 58 15 . 17 85 147 275 567 Initial 235 | . . 86 73 82 . . 5 235 136 . . . . . . 43 78 148 Average 99 | 1 121 136 114 6 . 2 305 194 55 . 10 1 . 1 18 33 153 101 Influence Increases 6031 | 50 629 780 711 80 . 63 505 530 328 . 247 48 . 64 207 199 357 1233 Destroy 0b10 Robot/C 1680 | . 380 480 340 60 . 20 400 . . . . . . . . . . . Destroy 0b10 Robot/NC 350 | 50 55 70 40 15 . 5 . 5 45 . 20 5 . . 15 10 . 15 Destroy Leader 418 | . 100 148 124 . . 10 30 . 2 . 4 . . . . . . . Successful Hack 388 | . . 23 39 4 . 10 . 42 111 . 49 8 . 23 7 30 42 . Select Force Hacks 30 | . . . . . . . . . . . . . . . . . 30 . Disable Machine 165 | . . . 120 . . . . 15 . . 15 . . . . 15 . . Destroy Structure 375 | . 4 14 33 1 . 3 45 18 80 . 84 20 . 26 20 9 15 3 Partial Spotted 345 | . . . . . . 15 . 75 90 . . 15 . 15 75 15 15 30 Lose Combat Pursuer 2280 | . 90 45 15 . . . 30 375 . . 75 . . . 90 120 255 1185 Influence Decreases 5479 | 50 423 811 673 293 . 55 63 701 607 . 245 50 . 64 129 137 232 946 Entered New Map 930 | . . 120 102 131 . . 3 215 143 . . 2 . . . 35 62 117 Time Decay 3938 | 50 403 691 561 162 . 55 . 326 427 . 228 46 . 53 119 102 60 655 Search Patrol Dispatched 100 | . . . . . . . . 100 . . . . . . . . . . Lost Part 453 | . 20 . 10 . . . 60 40 27 . 10 2 . 10 10 . 90 174 Lost Ally 58 | . . . . . . . . 20 10 . 7 . . 1 . . 20 . Squads Dispatched 81 | . 5 2 3 . . 2 . 13 16 . 15 5 . 3 8 2 4 3 Investigation 41 | . 1 . 1 . . . . 9 10 . 10 4 . . 3 . 1 2 Extermination 17 | . . . . . . 1 . 2 4 . 2 1 . 2 2 2 1 . Reinforcement 22 | . 4 2 1 . . 1 . 2 2 . 3 . . 1 3 . 2 1 Assault . | . . . . . . . . . . . . . . . . . . . Garrison 1 | . . . 1 . . . . . . . . . . . . . . . Intercept . | . . . . . . . . . . . . . . . . . . . Searches Triggered 1 | . . . . . . . . 1 . . . . . . . . . . Construction Impeded . | . . . . . . . . . . . . . . . . . . . Haulers Reinforced . | . . . . . . . . . . . . . . . . . . . Active Scanning Responses . | . . . . . . . . . . . . . . . . . . . Cargo Convoy Interrupts . | . . . . . . . . . . . . . . . . . . . Stealth | -11 -10 -9 -9 -9 -9 -6 -6 -6 -5 -5 -5 -4 -4 -4 -3 -2 -2 -2 --------- Run | Yrd Mat Mat Sto Rec Scr Fac Gar Fac Fac Was Fac Fac Was Fac Res Res Qua Frg Distress Signals 66 | . 2 3 5 . . . . 2 7 . . 3 . 1 . 2 3 38 Communications Jammed . | . . . . . . . . . . . . . . . . . . . Distress Signals . | . . . . . . . . . . . . . . . . . . . Times Spotted 626 | . 48 36 28 3 . 3 20 35 121 6 27 12 5 16 41 25 31 169 Peak Tracking Total 19 | . 5 4 4 1 . 1 8 17 16 6 7 9 5 6 13 15 17 19 Tactical Retreats 111 | . 5 2 1 . . . 1 11 23 . 10 3 . 4 11 3 3 34 ECM-based Alert Blocks 188 | . . . . . . . . . 119 . 19 12 . 10 28 . . . Traps | -11 -10 -9 -9 -9 -9 -6 -6 -6 -5 -5 -5 -4 -4 -4 -3 -2 -2 -2 ------- Run | Yrd Mat Mat Sto Rec Scr Fac Gar Fac Fac Was Fac Fac Was Fac Res Res Qua Frg Traps Triggered 13 | . 1 . . . . . 2 2 2 . 1 1 . 1 . . . 3 Indirectly . | . . . . . . . . . . . . . . . . . . . Trap Hack Attempts . | . . . . . . . . . . . . . . . . . . . Triggered . | . . . . . . . . . . . . . . . . . . . Disarmed . | . . . . . . . . . . . . . . . . . . . Reprogrammed . | . . . . . . . . . . . . . . . . . . . Reused . | . . . . . . . . . . . . . . . . . . . Traps Extracted . | . . . . . . . . . . . . . . . . . . . Installed . | . . . . . . . . . . . . . . . . . . . Triggered . | . . . . . . . . . . . . . . . . . . . Machines | -11 -10 -9 -9 -9 -9 -6 -6 -6 -5 -5 -5 -4 -4 -4 -3 -2 -2 -2 ---------- Run | Yrd Mat Mat Sto Rec Scr Fac Gar Fac Fac Was Fac Fac Was Fac Res Res Qua Frg Machines Disabled 11 | . . . 8 . . . . 1 . . 1 . . . . 1 . . Max in Single Turn 1 | . . . 1 . . . . 1 . . 1 . . . . 1 . . Garrison Access 6 | . . . . . . . . 1 1 . 2 1 . . 1 . . . Machines Repaired . | . . . . . . . . . . . . . . . . . . . Machines Dismantled . | . . . . . . . . . . . . . . . . . . . Machines Sabotaged . | . . . . . . . . . . . . . . . . . . . Overloaded Fab Kills . | . . . . . . . . . . . . . . . . . . . Hacking | -11 -10 -9 -9 -9 -9 -6 -6 -6 -5 -5 -5 -4 -4 -4 -3 -2 -2 -2 --------- Run | Yrd Mat Mat Sto Rec Scr Fac Gar Fac Fac Was Fac Fac Was Fac Res Res Qua Frg Machines Accessed 127 | . . 10 8 2 3 5 . 19 25 . 21 10 . 4 6 5 7 2 Terminals 63 | . . 7 7 2 . 2 . 10 8 . 8 4 . 3 2 3 6 1 Fabricators 8 | . . . . . . . . 2 3 . 2 . . . . 1 . . Repair Stations 12 | . . 2 1 . . 1 . . 2 . 3 1 . 1 . 1 . . Recycling Units 27 | . . . . . . . . 6 8 . 5 4 . . 3 . . 1 Scanalyzers 6 | . . 1 . . . 1 . . 3 . 1 . . . . . . . Garrison Access 8 | . . . . . . 1 . 1 1 . 2 1 . . 1 . 1 . Total Hacks 284 | . . 25 19 4 4 8 . 37 62 . 46 17 . 15 17 12 14 4 Successful 193 | . . 19 14 4 4 3 . 18 40 . 33 13 . 11 14 9 9 2 Failed 90 | . . 6 5 . . 4 . 19 22 . 13 4 . 4 3 3 5 2 Catastrophic 9 | . . 1 . . . . . 4 1 . 1 . . . . 1 . 1 Database Lockouts 1 | . . . . . . 1 . . . . . . . . . . . . Manual 161 | . . 7 12 2 . 3 . 32 25 . 25 12 . 7 15 4 13 4 Terminals 155 | . . 14 16 4 . 3 . 25 21 . 19 10 . 8 13 6 13 3 Fabricators 23 | . . . . . . . . 4 9 . 9 . . . . 1 . . Repair Stations 39 | . . 8 3 . . 2 . . 5 . 7 2 . 7 . 5 . . Recycling Units 35 | . . . . . . . . 7 13 . 7 4 . . 3 . . 1 Scanalyzers 20 | . . 3 . . . 2 . . 13 . 2 . . . . . . . Garrison Access 8 | . . . . . . 1 . 1 1 . 2 1 . . 1 . 1 . Terminal Hacks 68 | . . 6 11 2 4 1 . 6 8 . 7 5 . 4 8 2 3 1 Record 3 | . . . . . 3 . . . . . . . . . . . . . Part Schematic 6 | . . . 5 . . . . 1 . . . . . . . . . . Prototype ID Bank 6 | . . 3 2 1 . . . . . . . . . . . . . . Open Door 2 | . . . 2 . . . . . . . . . . . . . . . Level Access Points 5 | . . . . . . . . . 1 . 1 1 . 1 1 . . . Branch Access Points 3 | . . 1 . . . . . . . . . . . . 1 1 . . Terminal Index 5 | . . . . . . . . 1 1 . 1 1 . . 1 . . . Fabricator Index 1 | . . . . . . . . . 1 . . . . . . . . . Repair Station Index 4 | . . . . . . . . . 1 . 1 1 . . 1 . . . Recycling Unit Index 1 | . . . . . . . . . . . . . . . . . . 1 Garrison Index 1 | . . . . . . 1 . . . . . . . . . . . . Locate Traps 7 | . . 1 1 . . . . 1 2 . . . . . 1 1 . . Maintenance Status 7 | . . . . . . . . 1 1 . 1 1 . 1 1 . 1 . Patrol Status 4 | . . . . . . . . . . . . 1 . 2 1 . . . Recall Investigation 1 | . . . 1 . . . . . . . . . . . . . . . Recall Extermination 2 | . . . . . . . . 1 1 . . . . . . . . . Recall Reinforcements 3 | . . . . . . . . 1 . . 2 . . . . . . . Hauler Manifests 2 | . . 1 . 1 . . . . . . . . . . . . . . Registered Components 1 | . . . . . . . . . . . . . . . . . 1 . Zone Layout 3 | . . . . . . . . . . . 1 . . . 1 . 1 . Proto ID Catalog 1 | . . . . . 1 . . . . . . . . . . . . . Fabricator Hacks 14 | . . . . . . . . 1 6 . 6 . . . . 1 . . Network Status 3 | . . . . . . . . 1 . . 1 . . . . 1 . . Load Schematic 6 | . . . . . . . . . 3 . 3 . . . . . . . Build 5 | . . . . . . . . . 3 . 2 . . . . . . . Repair Station Hacks 27 | . . 8 . . . . . . 5 . 2 2 . 5 . 5 . . Scan Component 15 | . . 4 . . . . . . 3 . 2 1 . 3 . 2 . . Repair 11 | . . 4 . . . . . . 2 . . 1 . 2 . 2 . . Refit 1 | . . . . . . . . . . . . . . . . 1 . . Recycling Unit Hacks . | . . . . . . . . . . . . . . . . . . . Scanalyzer 14 | . . 3 . . . 1 . . 8 . 2 . . . . . . . Insert Component 4 | . . 1 . . . . . . 2 . 1 . . . . . . . Analyze 4 | . . 1 . . . . . . 2 . 1 . . . . . . . Retrieve Study 6 | . . 1 . . . 1 . . 4 . . . . . . . . . Garrison Access Hacks 7 | . . . . . . 1 . 1 1 . 2 1 . . 1 . . . Unlock Access 1 | . . . . . . 1 . . . . . . . . . . . . Seal Access 6 | . . . . . . . . 1 1 . 2 1 . . 1 . . . Unauthorized Hacks 63 | . . 2 3 2 . . . 10 12 . 14 5 . 2 5 1 6 1 Terminals 28 | . . 2 2 2 . . . 3 3 . 5 1 . 2 2 1 5 . Track 6 | . . . . . . . . . . . . . . 1 2 1 2 . Assimilate 9 | . . . . . . . . 2 1 . 3 . . 1 . . 2 . Botnet 13 | . . 2 2 2 . . . 1 2 . 2 1 . . . . 1 . Fabricators 5 | . . . . . . . . 1 2 . 2 . . . . . . . Prioritize 3 | . . . . . . . . . 2 . 1 . . . . . . . Recompile 2 | . . . . . . . . 1 . . 1 . . . . . . . Repair Stations 3 | . . . 1 . . . . . . . 2 . . . . . . . Patch 3 | . . . 1 . . . . . . . 2 . . . . . . . Recycling Units 26 | . . . . . . . . 6 7 . 5 4 . . 3 . . 1 Fedlink 26 | . . . . . . . . 6 7 . 5 4 . . 3 . . 1 Scanalyzers . | . . . . . . . . . . . . . . . . . . . Garrison Access 1 | . . . . . . . . . . . . . . . . . 1 . Eject 1 | . . . . . . . . . . . . . . . . . 1 . Data Cores Recovered . | . . . . . . . . . . . . . . . . . . . Used . | . . . . . . . . . . . . . . . . . . . Hacking Detections 72 | . . 8 6 1 . 4 . 12 15 . 8 4 . 4 2 3 4 1 Full Trace Events 7 | . . 1 . . . . . 1 3 . 2 . . . . . . . Feedback Events . | . . . . . . . . . . . . . . . . . . . Feedback Blocked . | . . . . . . . . . . . . . . . . . . . Robot Schematics Acquired . | . . . . . . . . . . . . . . . . . . . Robots Built . | . . . . . . . . . . . . . . . . . . . Authchips . | . . . . . . . . . . . . . . . . . . . Time . | . . . . . . . . . . . . . . . . . . . Total Robot Build Rating . | . . . . . . . . . . . . . . . . . . . Part Schematics Acquired 9 | . . 1 4 . . . . 1 2 . 1 . . . . . . . Parts Built 5 | . . . . . . . . . 3 . 2 . . . . . . . Authchips 2 | . . . . . . . . . 1 . 1 . . . . . . . Time 458 | . . . . . . . . . 205 . 253 . . . . . . . Total Part Build Rating 28 | . . . . . . . . . 16 . 12 . . . . . . . Part Studies Acquired 6 | . . 1 . . . 1 . . 4 . . . . . . . . . Parts Repaired 11 | . . 4 . . . . . . 2 . . 1 . 2 . 2 . . Time 467 | . . 116 . . . . . . 89 . . 50 . 76 . 136 . . Parts Recycled . | . . . . . . . . . . . . . . . . . . . Recycled Matter . | . . . . . . . . . . . . . . . . . . . Retrieved Matter . | . . . . . . . . . . . . . . . . . . . Retrieved Components . | . . . . . . . . . . . . . . . . . . . Parts Scanalyzed 4 | . . 1 . . . . . . 2 . 1 . . . . . . . Part Schematics Acquired 4 | . . 1 . . . . . . 2 . 1 . . . . . . . Parts Damaged . | . . . . . . . . . . . . . . . . . . . Bothacking | -11 -10 -9 -9 -9 -9 -6 -6 -6 -5 -5 -5 -4 -4 -4 -3 -2 -2 -2 ------------ Run | Yrd Mat Mat Sto Rec Scr Fac Gar Fac Fac Was Fac Fac Was Fac Res Res Qua Frg Used RIF Installer 1 | . . . . . . . 1 . . . . . . . . . . . Robots Hacked 1 | . . . . . . . . . 1 . . . . . . . . . Non-combat 1 | . . . . . . . . . 1 . . . . . . . . . Combat . | . . . . . . . . . . . . . . . . . . . Robot Hacks Applied 1 | . . . . . . . . . 1 . . . . . . . . . find_chute 1 | . . . . . . . . . 1 . . . . . . . . . Relay Couplers Released 4 | . . . . . . . . . . . . . . . . . 4 . Ejected 4 | . . . . . . . . . . . . . . . . . 4 . Fabnet Peak Effective % . | . . . . . . . . . . . . . . . . . . . Robots Rewired . | . . . . . . . . . . . . . . . . . . . Allies Hacked . | . . . . . . . . . . . . . . . . . . . Hacks Repelled . | . . . . . . . . . . . . . . . . . . . Allies | -11 -10 -9 -9 -9 -9 -6 -6 -6 -5 -5 -5 -4 -4 -4 -3 -2 -2 -2 -------- Run | Yrd Mat Mat Sto Rec Scr Fac Gar Fac Fac Was Fac Fac Was Fac Res Res Qua Frg Total Allies 19 | . . . 10 . . . . 2 1 . 3 . . 1 . . 2 . Largest Group 10 | . . . 10 . . . . 1 1 . 1 . . 1 . . 2 . Highest-Rated Group 90 | . . . 88 . . . . 26 10 . 26 . . 26 . . 90 . Highest-Rated Ally 45 | . . . 16 . . . . 26 10 . 26 . . 26 . . 45 . Initial UFD Resources 124 | . . . . . . 23 23 23 47 71 71 83 101 101 104 124 124 124 Total Orders 1 | . . . 1 . . . . . . . . . . . . . . . STAY 1 | . . . 1 . . . . . . . . . . . . . . . Ally Attacks . | . . . . . . . . . . . . . . . . . . . Total Damage . | . . . . . . . . . . . . . . . . . . . Kills . | . . . . . . . . . . . . . . . . . . . Allies Corrupted . | . . . . . . . . . . . . . . . . . . . Allies Melted 12 | . . . . . . . . . . . . . . . . . . 12 Intel | -11 -10 -9 -9 -9 -9 -6 -6 -6 -5 -5 -5 -4 -4 -4 -3 -2 -2 -2 ------- Run | Yrd Mat Mat Sto Rec Scr Fac Gar Fac Fac Was Fac Fac Was Fac Res Res Qua Frg Active Infowar (turns) 29972 | 289 1300 5882 3194 1708 4090 690 659 732 1160 23 867 340 21 642 378 289 127 7581 Optics 6634 | . . . . . . 652 659 456 . . . 198 21 642 378 289 74 3265 Sensors 2323 | . . . . . . . . 617 925 . 664 117 . . . . . . Terrain 170 | . . . . . . . . . . . . . . . . 87 83 . Structural 2004 | . . . . . . . . . 151 23 410 108 . 452 378 289 127 66 Seismic 18537 | 289 1300 5879 3194 1708 4090 690 261 83 220 23 199 . . . 144 289 103 65 T.N.C. 3 | . . 3 . . . . . . . . . . . . . . . . Machine Analysis 8104 | . . . . . . . . . . . . . . . 107 289 127 7581 ECM 1992 | . . . . . . . . . 808 23 514 232 21 190 204 . . . Robot Analysis Total . | . . . . . . . . . . . . . . . . . . . Derelict Logs Recovered . | . . . . . . . . . . . . . . . . . . . Drone Launches . | . . . . . . . . . . . . . . . . . . . Drone Recoveries . | . . . . . . . . . . . . . . . . . . . Exploration | -11 -10 -9 -9 -9 -9 -6 -6 -6 -5 -5 -5 -4 -4 -4 -3 -2 -2 -2 ------------- Run | Yrd Mat Mat Sto Rec Scr Fac Gar Fac Fac Was Fac Fac Was Fac Res Res Qua Frg Turns Passed 30478 | 319 1732 5926 3194 1708 4090 690 659 732 1160 23 867 340 21 642 378 289 127 7581 Spaces Moved 21844 | 69 792 2358 1139 697 1682 314 229 1935 2768 81 2048 1209 85 494 977 744 375 3848 Core . | . . . . . . . . . . . . . . . . . . . Treads 7290 | 69 792 2358 1139 697 1682 314 229 10 . . . . . . . . . . Legs . | . . . . . . . . . . . . . . . . . . . Wheels . | . . . . . . . . . . . . . . . . . . . Hover . | . . . . . . . . . . . . . . . . . . . Flight 14554 | . . . . . . . . 1925 2768 81 2048 1209 85 494 977 744 375 3848 Fastest Speed 11 | 160 160 160 240 240 240 160 160 27 24 26 24 24 24 22 25 12 11 23 Average Speed 93 | 160 160 223 240 240 240 208 210 28 27 26 25 24 24 23 25 25 24 37 Slowest Speed 320 | 160 160 320 240 240 240 240 224 213 101 26 26 25 24 29 29 28 28 108 Overloaded Moves 20 | . . . . . . . . . . . . . . . . 8 12 . Propulsion Burnouts . | . . . . . . . . . . . . . . . . . . . Robots Hopped 144 | . . . . . . . . 18 27 2 21 12 2 5 10 10 12 25 Potential Cave-ins . | . . . . . . . . . . . . . . . . . . . Cave-ins Triggered . | . . . . . . . . . . . . . . . . . . . Exploration Rate (%) 58 | 3 98 95 89 96 92 11 43 51 71 86 52 30 86 15 41 30 67 59 Regions Visited 18 Branch Regions 5 Pre-discovered Areas 1 | . . . . . . . . 1 . . . . . . . . . . Known Exits Taken 7 | . . 1 . . . 1 . 1 . . 1 . . 1 1 1 . . Unknown Exits Taken 6 | 1 1 . 1 1 1 . . . . . . . . . . . 1 . Scrap Searched 2 | . . . . . 2 . . . . . . . . . . . . . Spaces Dug 154 | . 4 . 7 . . 1 . 18 40 . 42 10 . 13 10 3 5 1 Terrain Destroyed 218 | . 4 5 27 1 . 3 36 18 40 . 42 10 . 13 10 3 5 1 Melee 154 | . 4 . 7 . . 1 . 18 40 . 42 10 . 13 10 3 5 1 Projectile 14 | . . 5 2 1 . 2 4 . . . . . . . . . . . AOE 50 | . . . 18 . . . 32 . . . . . . . . . . . Terrain Rammed . | . . . . . . . . . . . . . . . . . . . Walls Destroyed . | . . . . . . . . . . . . . . . . . . . Machines Disabled . | . . . . . . . . . . . . . . . . . . . Actions | -11 -10 -9 -9 -9 -9 -6 -6 -6 -5 -5 -5 -4 -4 -4 -3 -2 -2 -2 --------- Run | Yrd Mat Mat Sto Rec Scr Fac Gar Fac Fac Was Fac Fac Was Fac Res Res Qua Frg Total 30721 | 228 1054 2855 1462 713 1738 333 323 2072 3068 80 2295 1219 82 989 1061 812 382 9955 Wait 7717 | 116 88 275 159 . 47 . 9 72 220 1 180 1 . 473 52 55 4 5965 Move 21562 | 68 791 2357 1138 696 1681 314 228 1899 2716 77 2007 1187 81 485 957 723 355 3802 Hop 124 | . . . . . . . . 17 25 1 19 10 1 4 9 10 7 21 Pick Up 188 | 7 28 43 15 . 4 3 9 11 12 . 10 3 . 1 6 5 2 29 Fast Attach 95 | 1 1 9 4 . . 2 3 7 4 . 2 1 . 5 8 2 1 45 Attach 83 | . 2 8 2 . . 3 6 8 12 1 8 3 . 1 4 5 4 16 Detach 18 | . . . . . . . . . 3 . 2 . . . . . 1 12 Swap 127 | 2 14 25 20 2 2 4 12 5 15 . 7 2 . 6 3 1 . 7 Drop 216 | 8 20 45 32 2 4 . 5 32 6 . 7 1 . . 7 3 1 43 Fire 346 | 26 98 82 77 12 . 5 46 . . . . . . . . . . . Melee 209 | . 6 . 7 . . 2 1 21 54 . 53 11 . 14 15 8 7 10 Ram . | . . . . . . . . . . . . . . . . . . . Kick . | . . . . . . . . . . . . . . . . . . . Crush 26 | . 6 11 8 1 . . . . . . . . . . . . . . Escape Stasis 5 | . . . . . . . 4 . 1 . . . . . . . . . Rewire . | . . . . . . . . . . . . . . . . . . . Trap . | . . . . . . . . . . . . . . . . . . . Miscellaneous 5 | . . . . . . . . . . . . . . . . . . 5 Route ------- -11/Scrapyard -10/Materials (discovered 5 exits: *Mat x3 / [*Min x2]) -9/Materials (discovered 6 exits: [*Mat x3] / *Min x2 / *Sto) -9/Storage (discovered 2 exits: [*Mat] / *Rec) -9/Recycling (discovered 2 exits: [*Fac] / *Scr) -9/Scraptown (discovered 2 exits: *Fac x2) -6/Factory -6/Garrison -6/Factory (discovered 2 exits: *Fac / *Low) -5/Factory (discovered 5 exits: *Fac x4 / *Upp) -5/Waste -5/Factory (discovered 5 exits: *Fac x4 / *Upp) -4/Factory (discovered 5 exits: Res x4 / [*Upp]) -4/Waste -4/Factory (discovered 4 exits: *Res x4) -3/Research (discovered 5 exits: *Res x3 / Tes x2) -2/Research (discovered 4 exits: [*Acc x2] / *Qua x2) -2/Quarantine (discovered 2 exits: [*Sec] / *Frg) -2/Protoforge (discovered 1 exit: [*Acc]) History --------- Turn | Location | Event 17 | -11/Scrapyard | Discovered new exit (range 2) 320 | -11/Scrapyard | Entered Materials 334 | -10/Materials | Build established: Mutant 586 | -10/Materials | Discovered new exit (range 15) 805 | -10/Materials | Discovered new exit (range 12) 1274 | -10/Materials | Discovered new exit (range 11) 1520 | -10/Materials | Discovered new exit (range 7) 1702 | -10/Materials | Discovered new exit (range 12) 2052 | -10/Materials | Entered another Materials area 2052 | -9/Materials | Evolved 2 slots: Propulsion x1, Utility x1 2185 | -9/Materials | Met 8R-AWN 2288 | -9/Materials | Build established: Scavenger-Mutant 2355 | -9/Materials | Discovered new exit (range 12) 3165 | -9/Materials | Discovered new exit (range 13) 3800 | -9/Materials | Discovered new exit (range 5) 4263 | -9/Materials | Discovered new exit (range 10) 4869 | -9/Materials | Discovered new exit (range 16) 5579 | -9/Materials | Identified exit to Mines 5579 | -9/Materials | Identified exit to Storage 5688 | -9/Materials | Repaired Imp. Light Cannon 5721 | -9/Materials | Repaired Imp. Light Cannon 7265 | -9/Materials | Repaired Lgt. Treads 7493 | -9/Materials | Repaired Lgt. Treads 7978 | -9/Materials | Entered Storage 8414 | -9/Storage | Used back door to open Recycling access 8414 | -9/Storage | Discovered new exit (range 5) 9510 | -9/Storage | Garrison activated, responded to threat 9593 | -9/Storage | Assisted by bots powering up and referring to "LRC-V3" 9884 | -9/Storage | Build established: Commander-Mutant 10699 | -9/Storage | Discovered new exit (range 15) 11172 | -9/Storage | Entered Recycling 11469 | -9/Recycling | Build established: Scavenger-Mutant 11793 | -9/Recycling | Scanned before Scraplab entrance 12093 | -9/Recycling | Discovered new exit (range 5) 12842 | -9/Recycling | Entered Scraplab 12861 | -9/Recycling | Discovered new exit (range 3) 12880 | -9/Recycling | Entered Scraptown 13935 | -9/Scraptown | Visited Cyclists 14012 | -9/Scraptown | Visited Spacefarers 14362 | -9/Scraptown | Discovered new exit (range 5) 14485 | -9/Scraptown | Visited Shadow of the Wyrm 14545 | -9/Scraptown | Visited SPCMW 14691 | -9/Scraptown | Visited IN-MT5's Study 14780 | -9/Scraptown | Visited Comm Corps 15351 | -9/Scraptown | Visited UFD Registry 15351 | -9/Scraptown | Registered with UFD as "Laserforce" 15534 | -9/Scraptown | Visited Junk Repository 15872 | -9/Scraptown | Visited A0-MCA Data Center 15910 | -9/Scraptown | Visited Curators Association 15975 | -9/Scraptown | Visited LU-1G1's Boring Crew 16126 | -9/Scraptown | Visited Cartography Club 16196 | -9/Scraptown | Visited Scrapoid Research Area 16321 | -9/Scraptown | Visited Chapter 10 16537 | -9/Scraptown | Discovered new exit (range 5) 16621 | -9/Scraptown | Visited Science Guys 16698 | -9/Scraptown | Visited Supply Room 16845 | -9/Scraptown | Met Optimus 16845 | -9/Scraptown | Accepted into 0bPrime 16970 | -9/Scraptown | Entered Factory 16970 | -6/Factory | Evolved 6 slots: Power x1, Propulsion x2, Utility x3 17037 | -6/Factory | Central database locked down 17660 | -6/Factory | Identified exit to Garrison 17660 | -6/Factory | Entered Garrison 17733 | -6/Garrison | Triggered checkpoint 17848 | -6/Garrison | Triggered checkpoint 17994 | -6/Garrison | Destroyed 7 combat bots 18049 | -6/Garrison | Lost 3 parts (2n1u) 18082 | -6/Garrison | Triggered checkpoint 18166 | -6/Garrison | Discovered new exit (range 20) 18190 | -6/Garrison | Triggered checkpoint 18270 | -6/Garrison | Installed Relay Interface Framework 18319 | -6/Garrison | Entered Factory 18426 | -6/Factory | Loaded intel: 8 recycling unit locations 18462 | -6/Factory | Learned location of Protoforge (-2) 18529 | -6/Factory | Discovered new exit (range 14) 18540 | -6/Factory | Identified exit to Lower Caves 18586 | -6/Factory | Discovered new exit (range 7) 18588 | -6/Factory | Identified exit to Factory 18624 | -6/Factory | Spotted B-75 Beast 18669 | -6/Factory | Search patrols dispatched 18729 | -6/Factory | Build established: Hacker-Scout 19051 | -6/Factory | Entered another Factory area 19051 | -5/Factory | Evolved 2 slots: Propulsion x1, Utility x1 19068 | -5/Factory | Lost 3 parts (1p1n1u) 19072 | -5/Factory | Build established: Hacker-Sprinter 19093 | -5/Factory | Loaded intel: 8 recycling unit locations 19100 | -5/Factory | Spotted B-75 Beast 19190 | -5/Factory | Identified exit to Factory 19211 | -5/Factory | Discovered new exit (range 7) 19266 | -5/Factory | Repaired Imp. Flight Unit 19306 | -5/Factory | Repaired Lgt. Nuclear Core 19313 | -5/Factory | Identified exit to Upper Caves 19517 | -5/Factory | Fabricated Cld. Cesium-ion Thruster (x1) 19589 | -5/Factory | Fabricated Adv. Hacking Suite? 19723 | -5/Factory | Noticed a derelict Sapper rigging charges 19747 | -5/Factory | Watched by a mysterious "MATRIX" hacker 19823 | -5/Factory | Fabricated Cld. Cesium-ion Thruster? 20027 | -5/Factory | Lost 3 parts (1p2u) 20211 | -5/Factory | Sucked down chute 20211 | -5/Factory | Entered Waste 20217 | -5/Waste | Spotted C-40 Crusher 20222 | -5/Waste | Spotted C-40 Crusher 20226 | -5/Waste | Spotted C-40 Crusher 20227 | -5/Waste | Spotted C-40 Crusher 20230 | -5/Waste | Spotted C-40 Crusher 20231 | -5/Waste | Discovered new exit (range 13) 20231 | -5/Waste | Spotted C-40 Crusher 20234 | -5/Waste | Entered Factory 20241 | -5/Factory | Lost 3 parts (2n1u) 20324 | -5/Factory | Discovered exit to Upper Caves (range 15) 20509 | -5/Factory | Noticed a derelict Sapper rigging charges 20706 | -5/Factory | Fabricated Cld. Nuclear Pulse Thruster? 20732 | -5/Factory | Loaded intel: 7 recycling unit locations 20815 | -5/Factory | Fabricated Cld. Nuclear Pulse Thruster? 21101 | -5/Factory | Entered another Factory area 21101 | -4/Factory | Evolved 2 slots: Utility x2 21176 | -4/Factory | Loaded intel: 8 recycling unit locations 21243 | -4/Factory | Identified exit to Research 21319 | -4/Factory | Repaired Broken Cld. Cesium-ion Thruster 21428 | -4/Factory | Discovered new exit (range 9) 21441 | -4/Factory | Sucked down chute 21441 | -4/Factory | Entered Waste 21443 | -4/Waste | Spotted C-40 Crusher 21448 | -4/Waste | Spotted C-40 Crusher 21448 | -4/Waste | Spotted C-40 Crusher 21450 | -4/Waste | Spotted C-40 Crusher 21450 | -4/Waste | Spotted C-40 Crusher 21450 | -4/Waste | Spotted C-40 Crusher 21456 | -4/Waste | EMP discharged 21457 | -4/Waste | Discovered new exit (range 22) 21461 | -4/Waste | Identified exit to Factory 21462 | -4/Waste | Entered Factory 21506 | -4/Factory | Build established: Wizard-Sprinter 21517 | -4/Factory | Repaired Cld. Nuclear Pulse Thruster 21551 | -4/Factory | Repaired Broken Imp. Flight Unit 22104 | -4/Factory | Entered Research 22104 | -3/Research | Evolved 2 slots: Utility x2 22127 | -3/Research | Loaded intel: 4 recycling unit locations 22144 | -3/Research | Spotted B-86 Titan 22153 | -3/Research | Lost 4 parts (3n1w) 22294 | -3/Research | Lost 4 parts (2p1n1w) 22333 | -3/Research | Spotted B-86 Titan 22341 | -3/Research | Identified exit to Testing 22341 | -3/Research | Identified exit to Research 22457 | -3/Research | Spotted B-86 Titan 22482 | -3/Research | Entered another Research area 22482 | -2/Research | Evolved 2 slots: Utility x2 22552 | -2/Research | Repaired Mic. Fission Core+? 22648 | -2/Research | Repaired Cld. Cesium-ion Thruster 22692 | -2/Research | Discovered new exit (range 7) 22714 | -2/Research | Spotted B-90 Cyclops 22744 | -2/Research | Identified exit to Quarantine 22770 | -2/Research | Discovered new exit (range 21) 22771 | -2/Research | Entered Quarantine 22802 | -2/Quarantine | Targeted by mysterious "MATRIX" hacker 22812 | -2/Quarantine | Spotted Alpha 7 22882 | -2/Quarantine | Spotted Fortress 22886 | -2/Quarantine | Lost 9 parts (3p1n4u1w) 22897 | -2/Quarantine | Discovered new exit (range 5) 22897 | -2/Quarantine | Discovered new exit (range 6) 22898 | -2/Quarantine | Entered Protoforge 22912 | -2/Protoforge | Superfortress began startup sequence 22956 | -2/Protoforge | Spotted B-90 Cyclops 22961 | -2/Protoforge | Spotted AP7-3 22962 | -2/Protoforge | Spotted AP7-3 22965 | -2/Protoforge | Spotted Overlord 22970 | -2/Protoforge | Spotted Decapitator 22970 | -2/Protoforge | Spotted Decapitator 22982 | -2/Protoforge | UFD initiated attack on Protoforge (Readiness: Maximal) 22982 | -2/Protoforge | Loaded intel: 3 recycling unit locations 22994 | -2/Protoforge | Lost 4 parts (1p2n1u) 22997 | -2/Protoforge | Spotted EXE-6 22997 | -2/Protoforge | Spotted EXE-6 23015 | -2/Protoforge | Found Scrap Suit 23018 | -2/Protoforge | Optimus greeted in Protoforge 23019 | -2/Protoforge | Spotted EXE-6 23019 | -2/Protoforge | Spotted EXE-6 23033 | -2/Protoforge | Found Prototype Processor 23033 | -2/Protoforge | Identified Exp. Core Analyzer 23089 | -2/Protoforge | Lost 19 allies 23173 | -2/Protoforge | UFD reported confirmed Drillbomb installation 23236 | -2/Protoforge | UFD reported confirmed Drillbomb installation 23281 | -2/Protoforge | Build established: Hacker-Sprinter 23339 | -2/Protoforge | Spotted Hotshot 23342 | -2/Protoforge | Spotted Striker 23343 | -2/Protoforge | Spotted Hotshot 23370 | -2/Protoforge | Spotted Executioner 23433 | -2/Protoforge | Lost 5 allies 23442 | -2/Protoforge | Spotted Striker 23442 | -2/Protoforge | Spotted Striker 23446 | -2/Protoforge | Spotted Hotshot 23457 | -2/Protoforge | P-80 Master assimilated allied 02F44-D 23458 | -2/Protoforge | Spotted Striker 23462 | -2/Protoforge | Found UFD Drillbomb 23499 | -2/Protoforge | Lost 4 allies 23499 | -2/Protoforge | P-80 Master assimilated allied 02F58-D 23502 | -2/Protoforge | Spotted Striker 23538 | -2/Protoforge | Spotted Executioner 23577 | -2/Protoforge | Lost 8 allies 23608 | -2/Protoforge | Spotted Executioner 23620 | -2/Protoforge | Spotted Striker 23621 | -2/Protoforge | P-80 Master assimilated allied ES-VPR(E) 23655 | -2/Protoforge | Lost 6 allies 23675 | -2/Protoforge | Core integrity fell below 50% 23683 | -2/Protoforge | UFD reported confirmed Drillbomb installation 23735 | -2/Protoforge | Spotted Striker 23749 | -2/Protoforge | Spotted Executioner 23756 | -2/Protoforge | Spotted Executioner 23762 | -2/Protoforge | Spotted Executioner 23794 | -2/Protoforge | Build established: Hacker-Mutant 23794 | -2/Protoforge | Lost 15 allies 24203 | -2/Protoforge | Spotted Executioner 24237 | -2/Protoforge | UFD reported confirmed Drillbomb installation 24245 | -2/Protoforge | Lost 3 allies 25011 | -2/Protoforge | Spotted Executioner 25011 | -2/Protoforge | Spotted Striker 25018 | -2/Protoforge | Spotted Executioner 25024 | -2/Protoforge | Spotted Executioner 25057 | -2/Protoforge | Lost 3 parts (1p2u) 25074 | -2/Protoforge | Lost 7 allies 25872 | -2/Protoforge | UFD reported confirmed Drillbomb installation 25982 | -2/Protoforge | UFD reported confirmed Drillbomb installation 26637 | -2/Protoforge | UFD reported confirmed Drillbomb installation 27165 | -2/Protoforge | Spotted Decapitator 27175 | -2/Protoforge | Spotted Decapitator 27176 | -2/Protoforge | Spotted Decapitator 27188 | -2/Protoforge | Found Prototype Slashing Weapon 27188 | -2/Protoforge | Identified Exp. Terror Saw 27232 | -2/Protoforge | Spotted Executioner 27232 | -2/Protoforge | Found UFD Drillbomb 27235 | -2/Protoforge | Spotted Executioner 27240 | -2/Protoforge | Spotted Hotshot 27249 | -2/Protoforge | Spotted Hotshot 27249 | -2/Protoforge | Spotted Hotshot 27249 | -2/Protoforge | Spotted Hotshot 27250 | -2/Protoforge | Spotted Hotshot 27253 | -2/Protoforge | Spotted Executioner 27316 | -2/Protoforge | Lost 8 allies 28281 | -2/Protoforge | Spotted Striker 28297 | -2/Protoforge | Spotted Executioner 28301 | -2/Protoforge | Spotted Executioner 28306 | -2/Protoforge | Spotted Executioner 28349 | -2/Protoforge | Lost 3 allies 29686 | -2/Protoforge | Spotted Striker 29688 | -2/Protoforge | Spotted Striker 29729 | -2/Protoforge | Lost 3 allies 29847 | -2/Protoforge | Spotted Hotshot 29847 | -2/Protoforge | Spotted Hotshot 29847 | -2/Protoforge | Spotted Hotshot 29847 | -2/Protoforge | Spotted Hotshot 29847 | -2/Protoforge | Spotted Hotshot 29858 | -2/Protoforge | Spotted Executioner 29869 | -2/Protoforge | Spotted Striker 29885 | -2/Protoforge | Spotted Hotshot 29886 | -2/Protoforge | Spotted Hotshot 29903 | -2/Protoforge | Spotted Striker 29942 | -2/Protoforge | Lost 7 allies 29964 | -2/Protoforge | Spotted Striker 29966 | -2/Protoforge | Spotted Executioner 29974 | -2/Protoforge | Spotted Executioner 29974 | -2/Protoforge | Spotted Striker 29976 | -2/Protoforge | Core integrity fell below 20% 30007 | -2/Protoforge | Lost 5 allies 30050 | -2/Protoforge | Found UFD Drillbomb 30085 | -2/Protoforge | Lost 13 allies 30134 | -2/Protoforge | Spotted 02FAP-K 30137 | -2/Protoforge | Spotted Hotshot 30164 | -2/Protoforge | Spotted Executioner 30189 | -2/Protoforge | Discovered new exit (range 8) 30197 | -2/Protoforge | Spotted Striker 30209 | -2/Protoforge | Lost 7 allies 30209 | -2/Protoforge | Found UFD Drillbomb 30386 | -2/Protoforge | Spotted Striker 30400 | -2/Protoforge | Spotted Striker 30403 | -2/Protoforge | Spotted Executioner 30438 | -2/Protoforge | Spotted Striker 30438 | -2/Protoforge | Spotted Striker 30441 | -2/Protoforge | Lost 6 allies 30448 | -2/Protoforge | Spotted Executioner 30448 | -2/Protoforge | Spotted Executioner 30479 | -2/Protoforge | Destroyed by S-43 Plague with Heavy Machine Gun Last Messages --------------- 30448_ G-73 Enforcer unfolds itself. 30448_ P-80 Master unfolds itself. 30448_ H-88 Terminator unfolds itself. 30448_ B-74 Champion unfolds itself. 30448_ E-15 Imp unfolds itself. 30448_ Penetrated by Slug. 30448_ Slug penetrates Pattern Transfigurator. 30448_ Lgt. Antimatter Reactor destroyed. 30463_ System corrupted: Impulse Thruster Array rejected. 30463_ Acquired Impulse Thruster Array. 30469_ Enh. Force Lance destroyed. 30469_ Penetrated by Slug. 30469_ Impulse Thruster Array destroyed. 30469_ Penetrated by Slug. 30469_ Slug penetrates Wall. 30472_ Slug penetrates Terminal. 30478_ Slug penetrates Wall. 30478_ Slug penetrates Earth. 30478_ Slug penetrates Wall. [Achievement: Overachiever] Map ----- +----------------------------------------------------+ | ?????????########?????????# ""^"" %%= %%|=%! | | ?????????##???????????????# """ " *| % %%! %! | | ?????????##?#####?????????# """%= %%%"""!*""*" | | ?????????##?############### "%%%[% !%%!! % %" | | ????????###?#############" % %*%*= &&% " | | ????????############ [ !!=!= %% # | | ????????## ; =% "" !"#"% % "% | | ????????## "" # %!= ## % " | | ????????## ""??# *! ! ##"" % " | | ????????## "?????# #"########+#####"" + | | ????????## ????????# # ?#?????????# # | | ????????##?????????# # " #?????????#"""" # | | ????????##?????????+ # " #?""""????#"""" "# | | ?????#####?????????# # " #?""""????#"""" "# | | ?????##############; E/ #?""""????#"""" ## | | ?????## # # " #?""""????# ## | | ?????##"" """" # # " #?????????######### | | ?????##"" """" # # " #?????????######### | | ?????##"" """" # # ############?????## | | ?????##T """" #E #################?????## | | ?????##"" + #######???????????????## | | ?????##"" """" # ##????????????????????## | | ?????##"" """" # ##????????????????????## | | ?????## """" ##;; ;#????????????????????## | | ?????## """" ## ; ;#????????????????????## | | ?????## ###;@##????????????????????## | | ?????## ###;p#####??????????????????? | | ?????#####/###########;/#####??????????????????? | | ?????##### # s ##???#############??? | | ????????## # ##???#############??? | | ????????## # """ """K""" ##???##?????????##### | | ????????## # """ """s""" ##???##""""?????##### | | ????????## # """ """ """ ##???##""""?????## | | ????????## # """ """ s ###??##""""?????+ | | ????????## # """ """K ###??##?"""?????## | | ????????## # """ "" ##??##?"""?????## | | ????????## # """ """ ###??##?"""?????## | | ????????## # K g####### ## | | ?????##### ########;######/###########+###### | | ?????##### | | ?????## | | ?????## "" """" | | ?????## "" """" | | ?????#####"" """" ####+############ ####+# | | ?????#####T """ # #### # | | ????????##"" # #### # """ | | ????????##"" """" # """""" #### # | | ????????##"" """" # """""" #### # """ | | ????????## """" # """""" #### # | | ????????## """" # """""" #### # """ | +----------------------------------------------------+ Best States ------------- Heat Dissipation 101 Energy Generation 27 Energy Capacity 540 Matter Stores 300 Matter Capacity 300 Sight Range 23 Robot Scan Range 15 Terrain Scan Range 16 Terrain Scan Density 210 ECM Strength 1 Additional Mass Support 9 Base Temperature (-) 200 Armor Coverage 375 Core Shielding 10 Propulsion Shielding 90 Evasion (%) 78 Core Analysis 8 Recoil Reduction 5 Offensive Hacking 50 Defensive Hacking 34 Authchip Count 1 Item Schematics ----------------- Hacking Suite | -9/Materials | Scanalyzed Hcp. Storage Unit | -9/Storage | Hacked Lrg. Storage Unit | -9/Storage | Hacked ECM Suite | -9/Storage | Hacked Mni. Grenade Launcher | -9/Storage | Hacked Adv. Hacking Suite | -6/Factory | Hacked Cld. Cesium-ion Thruster | -5/Factory | Scanalyzed Mic. Fission Core | -5/Factory | Scanalyzed Cld. Nuclear Pulse Thruster | -5/Factory | Scanalyzed Robot Schematics ------------------ None Fabricated ------------ Cld. Cesium-ion Thruster | x1 | -5/Factory | Authchip Adv. Hacking Suite | x1 | -5/Factory Cld. Cesium-ion Thruster | x1 | -5/Factory Cld. Nuclear Pulse Thruster | x1 | -5/Factory | Authchip Cld. Nuclear Pulse Thruster | x1 | -5/Factory Repaired ---------- Imp. Light Cannon | 52% | -9/Materials Imp. Light Cannon | 67% | -9/Materials Lgt. Treads | 73% | -9/Materials Lgt. Treads | 72% | -9/Materials Imp. Flight Unit | 25% | -5/Factory Lgt. Nuclear Core | 10% | -5/Factory Cld. Cesium-ion Thruster | 4% | -4/Factory | Broken Cld. Nuclear Pulse Thruster | 38% | -4/Factory Imp. Flight Unit | 50% | -4/Factory | Broken Mic. Fission Core | 61% | -2/Research Cld. Cesium-ion Thruster | 48% | -2/Research Studied --------- VTOL Module | -9/Materials | Hacked Lgt. Treads | -6/Factory | Hacked Mic. Fission Core | -5/Factory | Hacked Lgt. Fission Core | -5/Factory | Hacked Lance | -5/Factory | Hacked Spear | -5/Factory | Hacked Alien Tech Used ----------------- None Achievements -------------- Follow The Leader Infodabbler Overachiever UFD MVP Challenges ------------ None Game ------ Seed AntisysTargetTearclaws Manual? 0 Play Time 07:24:05 Cumulative 370.6 hours Start 2026.07.25 @ 21:00:10 End 2026.07.26 @ 05:16:42 Sessions 1 Manual Loads 0 Difficulty Rogue Special Mode None Game No. 125 Rogue 125 Adventurer 0 Explorer 0 Win Type - Total 16 Types 11/1/1/0/1/0/0/0/0/2 Lore% 61 Gallery% 52 Achievement% 50 Wizard Run 0 Options --------- Layout 0 ASCII 0 Keyboard 0 Movement Numpad Keybinds 0 Fullscreen 1 Font 20/SmallcapsGlow Map View 90x57 Zoom Use 0% Tactical HUD 1 Map Filters NONE Filters BRIGHTNESS(200) Steam 1 RUN: c217e9ad-5dd3-4fbb-9ec8-6abfb8686377